bitfinex-derivatives/quotes_BTCF0:USTF0_20250308
["timestamp","ask_amount","ask_price","bid_price","bid_amount"]
[1741435638901,0.00032224,86041.0,86040.0,0.64194024]
[1741435639602,0.00032224,86041.0,86040.0,0.64494024]
[1741435640100,0.00032224,86041.0,86040.0,0.86324024]
[1741435640298,0.00032224,86041.0,86040.0,0.86624024]
[1741435641005,0.00032224,86041.0,86040.0,0.86324024]
[1741435641204,0.00032224,86041.0,86040.0,0.86624024]
[1741435641895,0.00032224,86041.0,86040.0,0.86324024]
[1741435642096,0.00032224,86041.0,86040.0,0.86524024]
[1741435643202,0.0657,86048.0,86040.0,0.74899434]
[1741435643397,0.0657,86048.0,86047.0,0.1162364]
[1741435644301,0.0658434,86048.0,86047.0,0.1162364]
[1741435644805,0.0658434,86048.0,86047.0,0.1172364]
[1741435645206,0.1820785,86048.0,86047.0,0.1172364]
[1741435645799,0.1820785,86048.0,86047.0,0.1162364]
[1741435646205,0.1819351,86048.0,86047.0,0.1162364]
[1741435646399,0.1819351,86048.0,86040.0,0.3608]
[1741435646400,0.1162445,86041.0,86040.0,0.3608]
[1741435646603,0.116254,86034.0,86033.0,0.1162551]
[1741435646906,0.1162553,86033.0,86030.0,0.27719053]
[1741435647108,0.1818553,86033.0,86030.0,0.39344983]
[1741435647608,0.1818553,86033.0,86032.0,0.116431]
[1741435647609,0.0656,86033.0,86032.0,0.116431]
[1741435648102,0.06571062,86033.0,86032.0,0.0001743]
[1741435648299,0.54276592,86033.0,86032.0,0.0001743]
[1741435648699,0.42651062,86033.0,86032.0,0.0001743]
[1741435648901,0.42651062,86033.0,86032.0,0.116431]
[1741435649710,0.42651062,86033.0,86032.0,0.0001743]
[1741435651207,0.54276592,86033.0,86032.0,0.0001743]
[1741435652715,0.54708896,86033.0,86032.0,0.0001743]
[1741435653097,0.54276592,86033.0,86032.0,0.0001743]
[1741435654607,0.54694315,86033.0,86032.0,0.0001743]
[1741435654814,0.54694315,86033.0,86022.0,0.00174353]
[1741435654815,0.43057723,86033.0,86022.0,0.00174353]
[1741435655016,0.43057723,86033.0,86007.0,0.3608]
[1741435655017,0.3608,86025.0,86007.0,0.3608]
[1741435655308,0.1162891,86008.0,86007.0,0.3608]
[1741435655514,0.11642175,86008.0,86007.0,0.3608]
[1741435656208,0.16540176,86008.0,86007.0,0.3608]
[1741435656508,0.16040176,86008.0,86007.0,0.3608]
[1741435656712,0.1162945,86004.0,86003.0,0.27719053]
[1741435657507,0.1102945,86004.0,86003.0,0.27719053]
[1741435658710,0.14231359,86004.0,86003.0,0.27719053]
[1741435659210,0.1421945,86004.0,86003.0,0.27719053]
[1741435659513,0.1371945,86004.0,86003.0,0.27719053]
[1741435659915,0.1381945,86004.0,86003.0,0.29019053]
[1741435660105,0.1381945,86004.0,85999.0,0.00191848]
[1741435660306,0.1163,86000.0,85987.0,0.3608]
[1741435660506,0.14015312,86000.0,85987.0,0.3608]
[1741435660703,0.0581524,85997.0,85987.0,0.3608]
[1741435661013,0.1163081,85994.0,85987.0,0.3608]
[1741435661212,0.0307,85993.0,85987.0,0.4771174]
[1741435661715,0.0277,85993.0,85987.0,0.3608]
[1741435662117,0.0277,85993.0,85987.0,0.3648]
[1741435662417,0.03924594,85993.0,85987.0,0.3648]
[1741435662616,0.03924594,85993.0,85987.0,0.3608]
[1741435662809,0.03924594,85993.0,85987.0,0.3628]
[1741435662810,0.15655614,85993.0,85987.0,0.3628]
[1741435663017,0.1450102,85993.0,85987.0,0.3628]
[1741435663320,0.0287,85993.0,85987.0,0.3628]
[1741435663508,0.0325,85992.0,85988.0,0.1163159]
[1741435663818,8.612e-05,85991.0,85987.0,0.3608]
[1741435664206,0.03258612,85991.0,85987.0,0.3608]
[1741435664613,0.1163144,85990.0,85987.0,0.3608]
[1741435664809,0.1487144,85990.0,85987.0,0.3608]
[1741435665009,0.0325,85989.0,85987.0,0.3608]
[1741435665410,0.0324,85988.0,85987.0,0.3608]
[1741435666010,0.1803162,85988.0,85987.0,0.3608]
[1741435666819,0.1813162,85988.0,85987.0,0.3608]
[1741435667416,0.1823162,85988.0,85987.0,0.3608]
[1741435667717,0.1843162,85988.0,85987.0,0.3608]
[1741435668609,0.1163182,85987.0,85985.0,0.1163189]
[1741435668810,0.068,85988.0,85987.0,0.1163175]
[1741435669021,0.0356,85988.0,85987.0,0.1163175]
[1741435670218,0.0336,85988.0,85987.0,0.1163175]
[1741435670621,0.0326,85988.0,85987.0,0.1163175]
[1741435671017,0.0336,85988.0,85987.0,0.1163175]
[1741435672715,0.0336,85988.0,85987.0,0.4771175]
[1741435673516,0.0346,85988.0,85987.0,0.4771175]
[1741435674518,0.0336,85988.0,85987.0,0.4771175]
[1741435682033,0.0336,85988.0,85987.0,0.75430803]
[1741435682926,0.1499162,85988.0,85987.0,0.75430803]
[1741435684016,0.0336,85988.0,85987.0,0.75430803]
[1741435684324,0.0346,85988.0,85987.0,0.75430803]
[1741435686731,0.0326,85988.0,85987.0,0.75430803]
[1741435686931,0.0346,85988.0,85987.0,0.75430803]
[1741435687132,0.0346,85988.0,85987.0,1.23693447]
[1741435687528,0.0326,85988.0,85987.0,1.23693447]
[1741435687732,0.0336,85988.0,85987.0,1.23693447]
[1741435687930,0.0326,85988.0,85987.0,1.23693447]
[1741435688631,0.1163109,85992.0,85991.0,0.1163121]
[1741435690332,0.11645737,85992.0,85991.0,0.1163121]
[1741435690532,0.1163109,85992.0,85991.0,0.1163121]
[1741435690735,0.0269,85996.0,85992.0,0.1163108]
[1741435691029,0.00017441,85999.0,85998.0,0.1163027]
[1741435691236,0.00017441,85999.0,85998.0,0.1782027]
[1741435691237,0.0091669,85999.0,85998.0,0.1782027]
[1741435691537,0.0091669,85999.0,85998.0,0.1475027]
[1741435691732,0.0091669,85999.0,85998.0,0.1163027]
[1741435692035,0.0722669,85999.0,85998.0,0.1163027]
[1741435692335,0.0762669,85999.0,85998.0,0.1163027]
[1741435693528,0.0762669,85999.0,85998.0,0.1476027]
[1741435693928,0.1975682,85999.0,85998.0,0.1476027]
[1741435694532,0.2557189,85999.0,85998.0,0.1163027]
[1741435695633,0.1394176,85999.0,85998.0,0.1163027]
[1741435696138,0.1394176,85999.0,85998.0,0.52967232]
[1741435696933,0.13929856,85999.0,85998.0,0.41336962]
[1741435698231,0.13929856,85999.0,85998.0,0.36346962]
[1741435699339,0.13529856,85999.0,85998.0,0.36346962]
[1741435699533,0.13929856,85999.0,85998.0,0.36346962]
[1741435699734,0.13929856,85999.0,85998.0,0.27829734]
[1741435700133,0.13429856,85999.0,85998.0,0.27829734]
[1741435700334,0.13829856,85999.0,85998.0,0.27829734]
[1741435701136,0.13729856,85999.0,85998.0,0.27829734]
[1741435701438,0.49809856,85999.0,85998.0,0.27829734]
[1741435701635,0.67267982,85999.0,85998.0,0.27829734]
[1741435702639,0.67281554,85999.0,85998.0,0.27829734]
[1741435702943,0.67267982,85999.0,85998.0,0.27829734]
[1741435703139,0.82267982,85999.0,85998.0,0.22179733]
[1741435703337,0.82267982,85999.0,85993.0,0.16557171]
[1741435703338,0.1163081,85994.0,85993.0,0.16557171]
[1741435703537,0.4771081,85994.0,85993.0,0.11567171]
[1741435703839,0.6271081,85994.0,85993.0,0.11567171]
[1741435704536,0.1163229,85983.0,85981.0,0.11567171]
[1741435704742,0.5601229,85983.0,85981.0,0.11567171]
[1741435705444,0.5938,85983.0,85951.0,0.66254696]
[1741435705647,0.1163608,85955.0,85954.0,0.62239732]
[1741435705949,0.1994408,85955.0,85954.0,0.62179732]
[1741435706132,0.1163608,85955.0,85954.0,0.62179732]
[1741435706336,0.19955523,85955.0,85954.0,0.62179732]
[1741435706529,0.1994408,85955.0,85954.0,0.62179732]
[1741435707237,0.35791998,85955.0,85954.0,0.62179732]
[1741435707441,0.35791998,85955.0,85954.0,0.61179732]
[1741435707845,0.35799998,85955.0,85954.0,0.61179732]
[1741435708530,0.36981624,85955.0,85954.0,0.61179732]
[1741435708742,0.21981624,85955.0,85954.0,0.61179732]
[1741435708940,0.26571624,85955.0,85954.0,0.61179732]
[1741435709141,0.26571624,85955.0,85954.0,0.59879732]
[1741435709346,0.26567624,85955.0,85954.0,0.59879732]
[1741435711133,0.26567624,85955.0,85952.0,0.0651]
[1741435711134,0.1163635,85953.0,85952.0,0.0651]
[1741435711331,0.4771635,85953.0,85952.0,0.0651]
[1741435711745,0.4771635,85953.0,85952.0,0.0321]
[1741435714740,0.5905235,85953.0,85952.0,0.0321]
[1741435716241,0.60800351,85953.0,85952.0,0.0321]
[1741435716443,0.62220351,85953.0,85952.0,0.0321]
[1741435717233,0.6242288,85953.0,85952.0,0.0321]
[1741435718450,0.6243394,85953.0,85952.0,0.0321]
[1741435718648,0.6243331,85953.0,85952.0,0.0321]
[1741435718948,0.6242288,85953.0,85952.0,0.0321]
[1741435719640,0.6242288,85953.0,85952.0,0.00214321]
[1741435719947,0.62220351,85953.0,85952.0,0.00214321]
[1741435720141,0.62422887,85953.0,85952.0,0.00214321]
[1741435722347,0.57962887,85953.0,85952.0,0.00214321]
[1741435722747,0.57760351,85953.0,85952.0,0.00214321]
[1741435722943,0.57771359,85953.0,85952.0,0.00214321]
[1741435723250,0.57760351,85953.0,85952.0,0.00214321]
[1741435724746,0.61070351,85953.0,85952.0,0.00214321]
[1741435726849,0.61078597,85953.0,85952.0,0.00214321]
[1741435727041,0.61070351,85953.0,85952.0,0.00214321]
[1741435727451,0.61070351,85953.0,85946.0,0.00017451]
[1741435727452,0.49434001,85953.0,85935.0,0.0321]
[1741435727649,0.4771866,85936.0,85935.0,1e-08]
[1741435727853,0.44336,85936.0,85911.0,0.3608]
[1741435728053,0.1164147,85916.0,85911.0,0.3608]
[1741435728255,0.08260722,85915.0,85911.0,0.37223909]
[1741435728548,0.19902332,85915.0,85911.0,0.37223909]
[1741435728851,0.08260722,85915.0,85911.0,0.37223909]
[1741435729049,0.1164191,85912.0,85911.0,0.3608]
[1741435734552,0.08252,85915.0,85911.0,0.3608]
[1741435734855,0.1164177,85913.0,85912.0,0.062]
[1741435736165,0.13389771,85913.0,85912.0,0.062]
[1741435738052,0.13389771,85913.0,85912.0,0.1784191]
[1741435738951,0.01748001,85913.0,85912.0,0.1784191]
[1741435739153,0.13389771,85913.0,85912.0,0.1784191]
[1741435739555,0.01748001,85913.0,85912.0,0.1784191]
[1741435739959,0.13389771,85913.0,85912.0,0.1784191]
[1741435741461,0.13389771,85913.0,85912.0,0.062]
[1741435741659,0.13403218,85913.0,85912.0,0.062]
[1741435741859,0.13389771,85913.0,85912.0,0.062]
[1741435742553,0.14533612,85913.0,85912.0,0.062]
[1741435744767,0.50613612,85913.0,85912.0,0.062]
[1741435745863,0.14533612,85913.0,85912.0,0.062]
[1741435746263,0.50613612,85913.0,85912.0,0.062]
[1741435746460,0.50613612,85913.0,85912.0,0.0316]
[1741435747563,0.0582127,85908.0,85904.0,0.00011727]
[1741435747752,0.4772286,85905.0,85904.0,0.00011727]
[1741435747953,0.47732128,85905.0,85904.0,0.00011727]
[1741435748261,0.4772286,85905.0,85904.0,0.00011727]
[1741435749267,0.4772286,85905.0,85894.0,0.0322]
[1741435749268,0.3608,85905.0,85894.0,0.0322]
[1741435749470,0.4772421,85895.0,85894.0,0.0322]
[1741435749662,0.5596821,85895.0,85894.0,0.0322]
[1741435750063,0.44324,85895.0,85876.0,0.0326]
[1741435750274,0.4772557,85885.0,85884.0,0.20842671]
[1741435750565,0.48882485,85885.0,85884.0,0.20842671]
[1741435751160,0.55122485,85885.0,85884.0,0.20842671]
[1741435751364,0.55122485,85885.0,85876.0,0.0322]
[1741435751365,0.1164665,85877.0,85876.0,0.0322]
[1741435751565,0.1995465,85877.0,85876.0,0.0322]
[1741435756373,0.21702651,85877.0,85876.0,0.0322]
[1741435757766,0.21715835,85877.0,85876.0,0.0322]
[1741435757967,0.21702651,85877.0,85876.0,0.0322]
[1741435758966,0.21712673,85877.0,85876.0,0.0322]
[1741435759174,0.21702651,85877.0,85876.0,0.0322]
[1741435759374,0.21713785,85877.0,85876.0,0.0322]
[1741435759573,0.21711882,85877.0,85876.0,0.0322]
[1741435759773,0.21717453,85877.0,85876.0,0.0322]
[1741435759980,0.21710912,85877.0,85876.0,0.0322]
[1741435760178,0.25017462,85877.0,85876.0,0.0322]
[1741435760371,0.25002651,85877.0,85876.0,0.0322]
[1741435761677,0.28042651,85877.0,85876.0,0.0322]
[1741435762683,0.28046651,85877.0,85876.0,0.0322]
[1741435763774,0.28046651,85877.0,85843.0,0.3608]
[1741435763775,0.1164869,85862.0,85843.0,0.3608]
[1741435764083,0.2625082,85861.0,85860.0,0.0325]
[1741435764379,0.2625882,85861.0,85860.0,0.0325]
[1741435765175,0.2625882,85861.0,85851.0,0.033]
[1741435765176,0.1165004,85852.0,85851.0,0.033]
[1741435765990,0.12830659,85852.0,85851.0,0.033]
[1741435768080,0.1165059,85848.0,85847.0,0.0322]
[1741435768274,0.20058604,85848.0,85847.0,0.0322]
[1741435771282,0.20058604,85848.0,85847.0,0.0627]
[1741435772185,0.20074604,85848.0,85847.0,0.5400072]
[1741435773284,0.20074604,85848.0,85847.0,0.4235]
[1741435773980,0.26424604,85848.0,85847.0,0.4235]
[1741435774576,0.2641259,85848.0,85847.0,0.4235]
[1741435775977,0.28160591,85848.0,85847.0,0.4235]
[1741435776376,0.10160001,85848.0,85847.0,0.4235]
[1741435776683,0.10172252,85848.0,85847.0,0.5400072]
[1741435778789,0.21822842,85848.0,85847.0,0.5400072]
[1741435778977,0.21822842,85848.0,85847.0,0.4235]
[1741435779375,0.21822842,85848.0,85847.0,0.5400072]
[1741435779884,0.21822842,85848.0,85847.0,0.4235]
[1741435782291,0.25012842,85848.0,85847.0,0.4235]
[1741435783594,0.25012842,85848.0,85847.0,0.393]
[1741435783789,0.25000591,85848.0,85847.0,0.393]
[1741435784195,0.24991678,85848.0,85847.0,0.393]
[1741435785289,0.25002801,85848.0,85847.0,0.393]
[1741435785597,0.24991678,85848.0,85847.0,0.393]
[1741435786294,0.24991678,85848.0,85847.0,0.0322]
[1741435786599,0.1165086,85846.0,85845.0,0.00174731]
[1741435787296,0.1495086,85846.0,85845.0,0.00174731]
[1741435790198,0.149642,85846.0,85845.0,0.00174731]
[1741435790391,0.14961979,85846.0,85845.0,0.00174731]
[1741435790594,0.15620739,85848.0,85847.0,0.1165072]
[1741435790791,0.35621973,85848.0,85847.0,0.1165072]
[1741435791191,0.21749235,85848.0,85847.0,0.0637]
[1741435791705,0.21734591,85848.0,85847.0,0.0637]
[1741435792000,0.28034591,85848.0,85847.0,0.0637]
[1741435793903,0.1165086,85846.0,85845.0,0.00174731]
[1741435794205,0.16384001,85848.0,85834.0,0.0624]
[1741435794402,0.1165222,85836.0,85835.0,0.033]
[1741435794593,0.1165222,85836.0,85835.0,0.0634]
[1741435796012,0.1166634,85836.0,85835.0,0.0634]
[1741435796197,0.11662511,85836.0,85835.0,0.0634]
[1741435796392,0.01748001,85845.0,85844.0,0.1165113]
[1741435796592,0.1007054,85845.0,85844.0,0.1165113]
[1741435797606,0.1007054,85845.0,85844.0,0.1801113]
[1741435798705,0.2172153,85845.0,85844.0,0.19181792]
[1741435798906,0.1007054,85845.0,85844.0,0.19181792]
[1741435799306,0.2172153,85845.0,85844.0,0.19181792]
[1741435799707,0.00010539,85845.0,85844.0,0.34181792]
[1741435800310,0.13951786,85848.0,85847.0,0.1165072]
[1741435800508,0.13951786,85848.0,85847.0,0.4773072]
[1741435800704,0.13951786,85848.0,85847.0,0.6273072]
[1741435801208,0.13951786,85848.0,85847.0,0.6884072]
[1741435801411,0.13963311,85848.0,85847.0,0.6884072]
[1741435802805,0.13963311,85848.0,85847.0,0.5384072]
[1741435804513,0.00011525,85848.0,85847.0,0.5384072]
[1741435806019,0.03181525,85848.0,85847.0,0.5384072]
[1741435806703,0.14832115,85848.0,85847.0,0.5384072]
[1741435807110,0.1791059,85848.0,85847.0,0.5384072]
[1741435807412,0.0626,85848.0,85847.0,0.4773072]
[1741435808017,0.07414425,85848.0,85847.0,0.4773072]
[1741435808314,0.0626,85848.0,85847.0,0.4773072]
[1741435809918,0.07456702,85848.0,85843.0,0.1165116]
[1741435810113,0.07456702,85848.0,85847.0,0.1165072]
[1741435810316,0.43536702,85848.0,85847.0,0.1165072]
[1741435811717,0.43536702,85848.0,85839.0,0.0629]
[1741435813522,0.00010537,85847.0,85839.0,0.0629]
[1741435813820,0.43536702,85848.0,85839.0,0.0629]
[1741435814020,0.0658,85847.0,85839.0,0.0629]
[1741435814222,0.1823072,85847.0,85839.0,0.0629]
[1741435814515,0.0658,85847.0,85839.0,0.0629]
[1741435814921,0.1165092,85846.0,85839.0,0.0629]
[1741435815117,0.0658,85847.0,85839.0,0.07483971]
[1741435815414,0.01196702,85848.0,85840.0,0.1165162]
[1741435815415,0.20031786,85845.0,85840.0,0.1165162]
[1741435815612,0.20031786,85845.0,85841.0,0.1786152]
[1741435816024,0.20031786,85845.0,85844.0,0.1165113]
[1741435816323,0.20031786,85845.0,85841.0,0.0621]
[1741435816324,0.21779787,85845.0,85841.0,0.1786146]
[1741435816712,0.01748001,85844.0,85841.0,0.1786146]
[1741435817117,0.14272,85843.0,85841.0,0.1786146]
[1741435817423,0.14272,85843.0,85842.0,0.116514]
[1741435817720,0.116514,85842.0,85841.0,0.0621]
[1741435818217,0.180714,85842.0,85841.0,0.0621]
[1741435818420,0.18085585,85842.0,85841.0,0.0621]
[1741435818619,0.1808067,85842.0,85841.0,0.0621]
[1741435818920,0.1165181,85839.0,85838.0,0.3608]
[1741435819725,0.1165222,85836.0,85835.0,0.033]
[1741435820019,0.11665367,85836.0,85835.0,0.033]
[1741435820616,0.18085367,85836.0,85835.0,0.033]
[1741435821219,0.06433147,85836.0,85835.0,0.1495235]
[1741435821726,0.19281921,85836.0,85835.0,0.1495235]
[1741435821924,0.06433147,85836.0,85835.0,0.1495235]
[1741435822222,0.18085367,85836.0,85835.0,0.1495235]
[1741435822620,0.06433147,85836.0,85835.0,0.1495235]
[1741435823724,0.18085367,85836.0,85835.0,0.1495235]
[1741435824627,0.06433147,85836.0,85835.0,0.1495235]
[1741435825622,0.03233147,85836.0,85835.0,0.1495235]
[1741435825826,0.00013147,85836.0,85835.0,0.1495235]
[1741435826036,0.00013147,85836.0,85835.0,0.2995235]
[1741435826527,0.13951786,85843.0,85842.0,0.116514]
[1741435826723,0.13951786,85843.0,85842.0,0.698614]
[1741435827321,0.13963604,85843.0,85842.0,0.698614]
[1741435828517,0.00011818,85843.0,85842.0,0.698614]
[1741435829622,0.00011818,85843.0,85842.0,0.730614]
[1741435830529,0.13951786,85846.0,85845.0,0.1165099]
[1741435830724,0.04366521,85852.0,85845.0,0.5821]
[1741435830925,0.01748001,85872.0,85856.0,0.116495]
[1741435831123,0.01748001,85872.0,85868.0,0.4772787]
[1741435831620,0.2442924,85869.0,85868.0,0.1164787]
[1741435833227,0.00014033,85869.0,85868.0,0.1164787]
[1741435835927,0.01762034,85869.0,85868.0,0.1164787]
[1741435837833,0.01762034,85869.0,85868.0,0.1490787]
[1741435839225,0.01762034,85869.0,85868.0,0.1815787]
[1741435842936,0.01762034,85869.0,85868.0,0.1164787]
[1741435843539,0.01762034,85869.0,85868.0,0.1776787]
[1741435845233,0.00014033,85869.0,85868.0,0.1776787]
[1741435846334,0.00014033,85869.0,85868.0,0.1164787]
[1741435846728,0.00014033,85869.0,85868.0,0.1814787]
[1741435847438,0.00014033,85869.0,85868.0,0.1164787]
[1741435848227,0.00014033,85869.0,85868.0,0.1814787]
[1741435850831,0.00014033,85869.0,85868.0,0.1164787]
[1741435852242,0.00014033,85869.0,85868.0,0.1783787]
[1741435852845,0.00014033,85869.0,85868.0,0.1164787]
[1741435856152,0.01762034,85869.0,85868.0,0.1164787]
[1741435856949,0.00014033,85869.0,85868.0,0.1164787]
[1741435857846,0.0608,85873.0,85872.0,0.1164733]
[1741435858443,0.1164747,85871.0,85870.0,0.0006]
[1741435858749,0.1164882,85861.0,85860.0,0.00017472]
[1741435858944,0.1164844,85864.0,85860.0,0.00017472]
[1741435859138,0.0314,85862.0,85861.0,0.1164872]
[1741435859341,0.03148753,85862.0,85861.0,0.1164872]
[1741435859550,0.03148753,85862.0,85861.0,0.1796872]
[1741435863353,8.753e-05,85862.0,85861.0,0.1796872]
[1741435864244,0.0303,85870.0,85861.0,0.2845]
[1741435864443,0.0303,85870.0,85869.0,0.4772774]
[1741435864849,0.1164709,85874.0,85869.0,0.3608]
[1741435865039,0.1164709,85874.0,85873.0,0.116472]
[1741435865239,0.0309,85873.0,85872.0,0.1164733]
[1741435865455,0.0309,85873.0,85872.0,0.1467733]
[1741435865749,0.0612,85873.0,85872.0,0.1772733]
[1741435866537,0.0612,85873.0,85872.0,0.18887087]
[1741435866940,0.177672,85873.0,85872.0,0.18887087]
[1741435868151,0.177672,85873.0,85872.0,0.15837087]
[1741435868346,0.177672,85873.0,85870.0,0.148176]
[1741435868537,0.1164747,85871.0,85870.0,0.2329506]
[1741435869349,0.1776723,85873.0,85872.0,0.1164733]
[1741435870249,0.0612,85873.0,85872.0,0.1164733]
[1741435870655,0.07268935,85873.0,85872.0,0.1164733]
[1741435873253,0.0612,85873.0,85872.0,0.1164733]
[1741435874443,0.1776726,85873.0,85871.0,0.0306]
[1741435874660,0.1776726,85873.0,85869.0,0.4779166]
[1741435874952,0.1776726,85873.0,85869.0,0.3608]
[1741435875154,0.0612,85873.0,85871.0,0.1164743]
[1741435875350,0.0612,85873.0,85871.0,0.2329485]
[1741435875552,0.0612,85873.0,85872.0,0.1164733]
[1741435875756,0.0612,85873.0,85872.0,0.1779733]
[1741435876256,0.07868001,85873.0,85872.0,0.1779733]
[1741435876652,0.0612,85873.0,85872.0,0.1779733]
[1741435878758,0.0303,85873.0,85872.0,0.1779733]
[1741435879056,0.00011598,85874.0,85873.0,0.116472]
[1741435879259,0.17428864,85880.0,85873.0,0.430472]
[1741435879562,0.17428864,85880.0,85879.0,0.4772638]
[1741435879853,0.17428864,85880.0,85879.0,0.6985638]
[1741435880355,0.17441175,85880.0,85879.0,0.6985638]
[1741435880557,0.17441175,85880.0,85879.0,0.7588638]
[1741435880745,0.00017472,85888.0,85885.0,0.1164557]
[1741435880951,0.00017472,85888.0,85885.0,0.4772557]
[1741435881553,0.00017472,85888.0,85885.0,0.5699557]
[1741435881758,0.20880433,85886.0,85885.0,0.5699557]
[1741435883058,0.24415207,85903.0,85902.0,0.1164326]
[1741435883259,0.17417993,85903.0,85902.0,0.8380326]
[1741435883952,0.17428678,85903.0,85902.0,0.4772326]
[1741435884663,0.17428678,85903.0,85902.0,0.6935326]
[1741435885957,0.17428678,85903.0,85902.0,0.5435326]
[1741435886156,0.17428678,85903.0,85902.0,0.55527698]
[1741435886662,0.17428678,85903.0,85902.0,0.92657698]
[1741435888065,0.10107798,85903.0,85902.0,0.92657698]
[1741435888261,0.0307,85916.0,85910.0,0.1164218]
[1741435888463,0.0307,85916.0,85910.0,0.6985218]
[1741435889055,2e-08,85911.0,85910.0,0.7639218]
[1741435889265,0.0322,85928.0,85927.0,0.1163988]
[1741435889558,0.09904001,85930.0,85929.0,0.116396]
[1741435889559,0.08156,85930.0,85929.0,0.116396]
[1741435889864,0.0322,85937.0,85931.0,0.1163933]
[1741435890260,0.00013846,85932.0,85931.0,0.1163933]
[1741435890559,0.00013846,85932.0,85931.0,0.3706933]
[1741435891761,0.00013846,85932.0,85931.0,0.38250635]
[1741435892162,6e-08,85932.0,85931.0,0.38250635]
[1741435897761,6e-08,85932.0,85931.0,0.53250635]
[1741435899074,6e-08,85932.0,85931.0,0.38250635]
[1741435900772,6e-08,85932.0,85931.0,0.46350635]
[1741435901761,6e-08,85932.0,85931.0,0.34950635]
[1741435902061,0.11639206,85932.0,85931.0,0.2213]
[1741435902263,0.11639206,85932.0,85931.0,0.1215]
[1741435902664,0.12799487,85932.0,85931.0,0.1215]
[1741435903267,0.01160287,85932.0,85929.0,0.1163952]
[1741435903462,0.1163947,85930.0,85929.0,0.1163952]
[1741435903676,0.03332413,85931.0,85923.0,0.05837662]
[1741435903870,0.1164018,85925.0,85924.0,0.1164026]
[1741435904269,0.1164028,85924.0,85923.0,0.00017462]
[1741435904464,0.11654704,85924.0,85923.0,0.00017462]
[1741435904675,0.47734704,85924.0,85923.0,0.00017462]
[1741435905872,0.51054704,85924.0,85923.0,0.00017462]
[1741435906068,0.54234704,85924.0,85923.0,0.00017462]
[1741435907480,0.54234704,85924.0,85923.0,0.11657882]
[1741435907778,0.18154704,85924.0,85923.0,0.11657882]
[1741435908877,0.18154704,85924.0,85923.0,0.00017462]
[1741435912489,0.1814028,85924.0,85923.0,0.00017462]
[1741435912681,0.0582027,85923.0,85900.0,0.36254607]
[1741435912983,0.116434,85901.0,85900.0,0.00174607]
[1741435913281,0.11654211,85901.0,85900.0,0.00174607]
[1741435913892,0.00010811,85901.0,85900.0,0.11818137]
[1741435914183,0.06200811,85901.0,85900.0,0.11818137]
[1741435915382,0.06200811,85901.0,85900.0,0.14968137]
[1741435917089,0.06200811,85901.0,85900.0,0.11818137]
[1741435917787,0.06200811,85901.0,85900.0,0.15118137]
[1741435919487,0.06200811,85901.0,85900.0,0.18358137]
[1741435919997,0.00010811,85901.0,85900.0,0.18358137]
[1741435920192,0.00017462,85909.0,85908.0,0.1164245]
[1741435920384,0.00017462,85909.0,85908.0,0.4772245]
[1741435920997,0.00017462,85909.0,85908.0,0.5411245]
[1741435921295,0.00027418,85909.0,85908.0,0.5411245]
[1741435925393,0.00027418,85909.0,85908.0,0.1803245]
[1741435925593,0.00027418,85909.0,85908.0,0.5411245]
[1741435934107,0.00027418,85909.0,85908.0,0.1803245]
[1741435934308,0.00027418,85909.0,85908.0,0.5411245]
[1741435935496,0.01748001,85924.0,85923.0,0.1164042]
[1741435935701,0.1387544,85929.0,85928.0,0.1163974]
[1741435936409,0.1387544,85929.0,85928.0,0.12802275]
[1741435936607,0.13883628,85929.0,85928.0,0.12802275]
[1741435936911,0.25523228,85929.0,85928.0,0.1163974]
[1741435937312,0.25523228,85929.0,85928.0,0.1487974]
[1741435937610,0.13883628,85929.0,85928.0,0.1487974]
[1741435938014,8.188e-05,85929.0,85928.0,0.1487974]
[1741435938200,0.06188188,85929.0,85928.0,0.1487974]
[1741435938698,8e-08,85929.0,85928.0,0.1487974]
[1741435938907,8e-08,85929.0,85928.0,0.1789974]
[1741435943003,8e-08,85929.0,85928.0,0.3004974]
[1741435945713,1e-07,85937.0,85936.0,0.1163866]
[1741435946016,1e-07,85937.0,85936.0,0.4771866]
[1741435946602,0.00013081,85937.0,85936.0,0.5403866]
[1741435949920,0.00013081,85937.0,85936.0,0.9011866]
[1741435954621,0.00013081,85937.0,85936.0,1.10946954]
[1741435958528,0.00013081,85937.0,85936.0,0.9011866]
[1741435958922,0.00013081,85937.0,85936.0,0.8692866]
[1741435960218,0.00013081,85937.0,85936.0,0.8379866]
[1741435966721,0.00013081,85937.0,85936.0,0.8703866]
[1741435969342,0.00013081,85937.0,85936.0,0.5095866]
[1741435970132,0.00013081,85937.0,85936.0,0.5425866]
[1741435972135,0.00013081,85937.0,85936.0,0.89079557]
[1741435972528,0.00013081,85937.0,85936.0,0.92984834]
[1741435974633,0.08098001,85946.0,85936.0,0.92984834]
[1741435974634,0.08098001,85946.0,85936.0,0.8690757]
[1741435974840,0.08098001,85946.0,85945.0,0.1163744]
[1741435975036,0.08098001,85946.0,85945.0,0.12973659]
[1741435975540,0.08098001,85946.0,85945.0,0.12973859]
[1741435975742,0.08110461,85946.0,85945.0,0.12973859]
[1741435975935,0.0636246,85946.0,85945.0,0.12973859]
[1741435976135,0.08110461,85946.0,85945.0,0.14152562]
[1741435976342,0.0636246,85946.0,85945.0,0.14152562]
[1741435976532,0.08110461,85946.0,85945.0,0.14152562]
[1741435977533,0.08110461,85946.0,85945.0,0.17432458]
[1741435977941,0.08110461,85946.0,85945.0,0.20682458]
[1741435978531,0.0320246,85946.0,85945.0,0.17402458]
[1741435978728,0.10430579,85950.0,85949.0,0.116369]
[1741435978937,0.10430579,85950.0,85949.0,0.16984365]
[1741435979341,0.10430579,85950.0,85949.0,0.23324365]
[1741435979734,0.10438934,85950.0,85949.0,0.23324365]
[1741435980437,8.355e-05,85950.0,85949.0,0.23324365]
[1741435980644,8.355e-05,85950.0,85949.0,0.1892805]
[1741435980829,8.355e-05,85950.0,85949.0,0.2198805]
[1741435981450,8.355e-05,85950.0,85949.0,0.26299309]
[1741435981738,8.355e-05,85950.0,85949.0,0.27657401]
[1741435983036,8.355e-05,85950.0,85949.0,0.27660142]
[1741435983646,0.00589348,85951.0,85949.0,0.29855176]
[1741435983944,0.00017462,85954.0,85949.0,0.29855176]
[1741435983945,0.00017462,85954.0,85950.0,0.07567017]
[1741435984246,0.10430579,85967.0,85966.0,0.1163459]
[1741435984440,0.10430579,85967.0,85966.0,0.51270457]
[1741435984640,0.104408,85967.0,85966.0,0.50526154]
[1741435985145,0.104408,85967.0,85966.0,0.50515094]
[1741435985334,0.104408,85967.0,85966.0,0.55684363]
[1741435985729,0.0265404,85967.0,85966.0,0.55684363]
[1741435986140,0.0265404,85967.0,85966.0,0.59709992]
[1741435986342,0.0265404,85967.0,85966.0,0.55684363]
[1741435986541,0.1387544,85970.0,85966.0,0.55684363]